bitfinex/quotes_ETHUSD_20241122
["timestamp","ask_amount","ask_price","bid_price","bid_amount"]
[1732303769555,1.2759,3291.9,3291.4,0.3035]
[1732303769837,1.2759,3291.9,3291.4,0.63385]
[1732303770037,1.2759,3291.9,3291.4,0.3035]
[1732303770618,1.2759,3291.9,3290.5,0.3035]
[1732303771009,1.2759,3291.9,3291.4,0.3035]
[1732303772038,1.2759,3291.9,3290.5,0.3035]
[1732303772247,1.1967,3292.0,3291.1,3.3035]
[1732303772248,1.31387336,3291.8,3291.1,3.3035]
[1732303772415,1.56113336,3291.8,3291.1,0.3035]
[1732303773118,1.2759,3291.6,3288.9,1.2136]
[1732303773334,1.2759,3291.4,3289.2,0.3035]
[1732303773645,1.31388687,3291.3,3289.2,0.3035]
[1732303774244,1.31388687,3291.3,3289.4,0.3035]
[1732303774651,1.2759,3291.3,3290.3,0.3035]
[1732303775109,1.2759,3291.3,3290.7,0.3035]
[1732303775939,1.2759,3291.3,3290.7,0.63385]
[1732303776132,1.2759,3291.3,3290.0,1.2136]
[1732303776133,1.2759,3291.3,3290.8,3.3035]
[1732303777212,1.2759,3291.3,3290.9,0.3035]
[1732303778606,1.2759,3291.3,3290.1,0.3035]
[1732303778925,1.2759,3291.3,3290.9,0.3035]
[1732303779532,1.2759,3291.3,3291.1,0.3035]
[1732303781712,0.69775781,3291.3,3291.1,0.3035]
[1732303782051,1.213091,3292.2,3291.1,3.3035]
[1732303782235,0.16114224,3292.8,3291.3,0.3035]
[1732303782412,0.19911621,3292.8,3291.3,3.3035]
[1732303782613,1.212981,3292.8,3291.7,0.3035]
[1732303782828,0.03796625,3293.8,3291.7,0.3035]
[1732303783062,1.212705,3293.2,3291.7,0.3035]
[1732303783347,1.212705,3293.2,3291.4,1.2411]
[1732303783348,0.03796329,3293.1,3291.9,0.3035]
[1732303783517,0.03796329,3293.1,3292.1,0.3035]
[1732303784064,1.212696,3293.3,3292.1,0.3035]
[1732303784347,1.212696,3293.3,3292.3,0.3035]
[1732303784546,1.212696,3293.3,3292.5,0.3035]
[1732303784749,1.1818,3293.2,3292.5,0.3035]
[1732303785517,1.1818,3293.2,3292.6,0.3035]
[1732303787223,1.1818,3293.2,3292.1,0.3035]
[1732303787442,1.1818,3293.2,3292.5,3.3035]
[1732303789171,1.1818,3293.2,3292.3,0.3035]
[1732303789628,1.1818,3293.2,3292.5,3.3035]
[1732303789831,1.1818,3293.2,3292.5,0.63385]
[1732303790027,1.1818,3293.2,3292.5,3.3035]
[1732303790663,1.1818,3293.2,3292.6,0.3035]
[1732303790873,1.2228,3293.8,3292.8,3.3035]
[1732303791096,1.2228,3293.8,3292.8,3.0]
[1732303791262,1.2228,3293.8,3292.8,3.44977]
[1732303791567,1.2228,3293.8,3292.8,0.44977]
[1732303791776,1.2228,3293.8,3292.9,3.0]
[1732303791937,1.2228,3293.8,3292.6,1.1942]
[1732303792564,1.2228,3293.8,3292.9,3.0]
[1732303793070,1.2323,3293.6,3292.9,3.0]
[1732303793277,1.2323,3293.6,3292.3,1.4713]
[1732303793278,1.27025803,3293.5,3292.3,0.3035]
[1732303793765,1.27025803,3293.5,3292.5,3.0]
[1732303794371,1.27025803,3293.5,3292.1,0.3035]
[1732303794667,1.27025803,3293.5,3292.5,3.0]
[1732303795080,1.27025803,3293.5,3292.1,0.3035]
[1732303795284,1.27025803,3293.5,3292.5,3.0]
[1732303795435,1.27025803,3293.5,3292.2,3.0]
[1732303795633,1.27025803,3293.5,3291.7,0.3035]
[1732303795938,1.27025803,3293.5,3291.8,0.1588]
[1732303796847,1.27025803,3293.5,3291.5,0.3035]
[1732303797275,1.1662,3293.3,3292.0,3.0]
[1732303797573,1.1662,3293.1,3292.0,3.0]
[1732303797752,1.1662,3292.9,3292.0,3.0]
[1732303797942,1.20416937,3292.8,3292.0,3.3]
[1732303798136,1.20416937,3292.8,3291.4,0.3035]
[1732303798580,1.20416937,3292.8,3292.0,3.0]
[1732303798786,1.20416937,3292.8,3291.4,0.3035]
[1732303798985,0.03796937,3292.7,3291.5,0.61134244]
[1732303799194,1.1613,3292.6,3291.5,0.61134244]
[1732303799395,1.1613,3292.6,3292.0,3.0]
[1732303799690,1.1613,3292.6,3292.1,0.3]
[1732303799874,0.03796733,3292.5,3291.5,0.3035]
[1732303800486,0.03796733,3292.5,3289.6,0.01]
[1732303800487,1.1613,3292.4,3290.6,1.2518]
[1732303800687,1.19927593,3292.3,3290.7,0.30784244]
[1732303801055,1.19927593,3292.3,3290.7,0.61134244]
[1732303801387,0.03797594,3292.2,3290.7,0.61134244]
[1732303801691,0.03797594,3292.2,3291.4,3.0]
[1732303801893,0.03797594,3292.2,3290.7,0.61134244]
[1732303801894,1.1613,3292.1,3291.5,0.3]
[1732303802051,0.03797594,3292.0,3290.7,0.61134244]
[1732303802453,0.03797594,3292.0,3291.4,3.0]
[1732303802648,0.03797594,3292.0,3291.5,0.3]
[1732303802897,0.03797594,3292.0,3290.7,0.61134244]
[1732303803273,0.03797594,3292.0,3291.4,3.0]
[1732303804086,0.03797594,3292.0,3290.7,0.61134244]
[1732303804294,1.2025,3291.9,3291.1,3.0]
[1732303804451,1.2404784,3291.8,3291.0,3.0]
[1732303804651,1.2404784,3291.8,3290.3,1.2467]
[1732303804904,1.2404784,3291.8,3290.1,0.3035]
[1732303805100,1.2404784,3291.8,3290.2,0.15502]
[1732303805758,1.2404784,3291.8,3290.2,0.30784244]
[1732303805968,1.2555,3291.6,3289.4,0.30784244]
[1732303806195,0.55,3291.7,3289.4,0.30784244]
[1732303806196,1.29349082,3291.5,3289.4,0.30784244]
[1732303806598,1.2555,3291.3,3289.4,0.30784244]
[1732303806771,0.55,3291.4,3288.5,0.28571633]
[1732303806772,1.2555,3291.1,3289.0,0.3035]
[1732303806971,2.07039275,3291.4,3289.0,0.61134244]
[1732303806972,1.2555,3290.9,3289.0,0.61134244]
[1732303807218,2.07039275,3291.4,3289.2,0.3035]
[1732303807219,1.2555,3290.7,3289.2,0.3035]
[1732303807509,1.29349531,3290.6,3289.2,0.3035]
[1732303808006,0.03799611,3290.5,3289.2,0.61134244]
[1732303808212,1.2555,3290.4,3289.2,0.61134244]
[1732303808418,2.07039274,3291.4,3289.2,0.61134244]
[1732303808419,1.2555,3290.2,3289.2,0.61134244]
[1732303808705,0.00999982,3291.1,3289.1,0.17786424]
[1732303808706,1.2555,3290.0,3289.1,0.17786424]
[1732303808908,1.2555,3290.0,3289.5,3.0]
[1732303809947,1.2555,3290.0,3289.3,0.30784244]
[1732303810213,1.2555,3290.0,3289.5,3.0]
[1732303810382,0.03799846,3291.1,3289.6,0.3]
[1732303810591,1.238,3291.0,3289.6,0.3]
[1732303810797,1.238,3290.8,3289.9,3.0]
[1732303810985,1.27599249,3290.7,3290.0,0.3]
[1732303811182,1.27599249,3290.7,3289.6,0.3035]
[1732303811422,0.55,3290.6,3289.6,0.3035]
[1732303811581,1.27600012,3290.5,3289.6,0.3035]
[1732303811777,1.27600012,3290.5,3288.1,1.2844]
[1732303811778,1.42060001,3290.4,3288.1,1.2844]
[1732303812089,1.42060001,3290.4,3288.5,0.3035]
[1732303812090,0.55,3290.1,3288.5,0.3035]
[1732303812289,1.27600587,3290.0,3288.5,0.3035]
[1732303812518,0.55,3289.9,3288.5,0.3035]
[1732303812681,0.55,3289.9,3287.5,1.2844]
[1732303812682,1.27601007,3289.8,3288.6,0.3035]
[1732303813419,1.27601007,3289.8,3287.5,1.2844]
[1732303813420,1.2569,3289.2,3287.8,0.3035]
[1732303813752,0.55,3289.3,3287.9,0.3035]
[1732303813753,1.29491465,3289.1,3287.9,0.3035]
[1732303814048,1.47940612,3289.1,3287.9,0.3035]
[1732303814644,1.47940612,3289.1,3287.4,0.3035]
[1732303814850,1.47940612,3289.1,3287.4,0.61134244]
[1732303815749,1.1924,3288.7,3286.6,1.1942]
[1732303815904,1.1976,3288.5,3287.0,0.30784244]
[1732303816107,1.1976,3288.5,3286.6,1.1942]
[1732303816108,1.1976,3288.3,3286.6,1.1942]
[1732303816330,1.23562353,3288.2,3286.6,0.30784244]
[1732303816639,1.1718,3288.0,3286.6,0.30784244]
[1732303816841,1.1718,3287.8,3286.6,0.30784244]
[1732303817042,1.1718,3287.6,3286.6,0.30784244]
[1732303817367,1.1718,3287.6,3285.3,0.23718493]
[1732303817368,1.1718,3287.0,3284.3,1.2746]
[1732303817504,2.80502431,3287.6,3283.8,1.25564868]
[1732303817505,1.20984602,3286.9,3284.7,0.01]
[1732303817699,1.1718,3286.9,3285.2,1.5781]
[1732303817904,1.1718,3286.9,3285.3,2.0074548]
[1732303818150,1.1718,3286.9,3285.5,0.01]
[1732303818444,1.1718,3286.9,3285.6,0.5740448]
[1732303818604,1.1718,3286.9,3285.6,0.28277654]
[1732303818801,0.03803485,3286.8,3285.4,0.55]
[1732303819044,1.1718,3286.9,3285.6,0.55]
[1732303819549,1.1718,3286.9,3285.6,0.83277654]
[1732303819707,1.1718,3286.9,3285.8,0.55]
[1732303820062,1.18179982,3288.7,3286.0,0.55]
[1732303820202,1.1718,3288.5,3286.0,0.55]
[1732303820403,0.00999982,3288.7,3286.0,0.55]
[1732303820404,1.1718,3288.3,3286.0,0.55]
[1732303820749,1.1718,3288.1,3286.0,0.55]
[1732303820901,1.1718,3287.9,3286.0,0.55]
[1732303821108,1.1718,3287.7,3286.0,0.55]
[1732303821304,1.20982923,3287.6,3286.0,0.55]
[1732303821629,1.1718,3287.6,3286.0,0.55]
[1732303822148,1.1718,3287.6,3285.9,0.21073765]
[1732303822149,0.03802451,3287.5,3287.2,3.0]
[1732303822710,0.03802451,3287.5,3286.0,0.55]
[1732303822933,1.1718,3287.6,3286.0,0.55]
[1732303823141,1.1718,3287.6,3286.1,1.2746]
[1732303823460,3.40265555,3289.3,3286.0,0.55]
[1732303823461,1.1718,3288.7,3286.3,1.2746]
[1732303823602,0.0380171,3288.6,3287.8,3.0]
[1732303823806,0.0380171,3288.6,3287.9,0.3]
[1732303824027,0.0380171,3288.6,3286.5,1.2746]
[1732303824028,1.1718,3288.5,3286.6,0.55]
[1732303824229,1.1718,3288.3,3286.8,0.55]
[1732303826249,1.2255,3288.1,3286.8,0.55]
[1732303826746,0.03801917,3288.0,3286.8,0.55]
[1732303827048,1.2255,3288.1,3286.8,0.55]
[1732303827408,1.2255,3288.1,3288.0,3.0]
[1732303827613,1.2255,3288.1,3288.0,0.3]
[1732303827808,1.2255,3289.0,3287.3,0.55]
[1732303828247,0.0380134,3288.9,3287.3,0.55]
[1732303828452,0.0380134,3288.9,3288.2,3.0]
[1732303828748,1.2255,3288.8,3287.3,0.55]
[1732303829046,0.03801341,3288.7,3288.2,3.0]
[1732303829251,1.2255,3288.6,3288.2,3.0]
[1732303830309,1.2255,3288.6,3288.2,0.3]
[1732303830549,1.2255,3288.6,3287.5,0.55]
[1732303830759,1.2255,3288.6,3287.6,1.2466]
[1732303830960,1.2426,3289.5,3287.7,0.55]
[1732303831169,1.2426,3289.5,3288.1,0.3035]
[1732303831318,1.2426,3289.5,3288.2,0.8535]
[1732303831515,1.2426,3289.5,3288.4,0.8535]
[1732303836534,0.03799963,3290.5,3288.0,1.195]
[1732303836535,0.03799965,3289.4,3288.0,1.195]
[1732303836733,1.2448,3289.3,3288.0,1.4985]
[1732303836935,1.2448,3289.3,3288.0,1.8079432]
[1732303837137,1.2448,3289.3,3288.1,0.3094432]
[1732303837342,1.2448,3289.3,3288.2,0.18079432]
[1732303837559,1.2448,3289.3,3288.2,0.48429432]
[1732303837767,1.2448,3289.3,3288.3,0.55]
[1732303837975,1.2448,3289.3,3288.5,0.55]
[1732303838188,1.2448,3290.2,3289.7,3.0]
[1732303838461,1.2448,3290.2,3289.8,0.3]
[1732303838630,1.2448,3290.2,3288.6,4.4985]
[1732303838631,1.2448,3290.2,3288.7,0.55]
[1732303838826,1.2448,3290.2,3288.9,0.55]
[1732303839828,1.2448,3290.2,3288.8,0.8535]
[1732303840254,1.2448,3290.2,3288.8,1.1629432]
[1732303840441,1.2448,3290.2,3289.2,0.3035]
[1732303840645,1.2448,3290.2,3289.3,0.55]
[1732303841431,0.03799296,3290.1,3288.7,3.0]
[1732303841639,1.2448,3290.1,3288.8,0.54506487]
[1732303841931,1.195,3291.2,3288.6,1.4985]
[1732303841932,1.28279956,3290.0,3288.6,1.4985]
[1732303842579,1.28279956,3290.0,3288.2,1.436443]
[1732303842580,1.28279956,3290.0,3288.3,1.4985]
[1732303842867,1.28279956,3290.0,3288.3,0.3319916]
[1732303843032,1.28279956,3290.0,3288.2,0.18079432]
[1732303843367,1.28279956,3290.0,3288.4,0.3094432]
[1732303843368,1.2448,3290.0,3288.4,0.3094432]
[1732303843674,1.2448,3289.8,3288.4,0.3094432]
[1732303844081,0.03800104,3289.7,3288.4,0.55]
[1732303844259,1.2448,3289.6,3288.3,0.3035]
[1732303844461,1.2448,3289.4,3288.4,0.4739943]
[1732303844666,1.2448,3289.4,3288.2,0.18079432]
[1732303844667,1.2448,3289.4,3288.5,0.3094432]
[1732303844869,1.2448,3289.4,3288.2,0.18079432]
[1732303845036,1.2448,3289.4,3288.3,1.25564868]
[1732303845241,1.2448,3289.4,3288.4,0.17458862]
[1732303845478,1.2448,3289.4,3288.3,0.8535]
[1732303845636,1.2448,3289.4,3288.3,3.8535]
[1732303846349,1.2448,3289.4,3288.3,0.8535]
[1732303846678,1.2448,3289.4,3289.0,0.8535]
[1732303847691,0.03800232,3290.7,3289.0,0.8535]
[1732303847981,0.03799392,3291.1,3289.2,0.3035]
[1732303848141,0.03799392,3291.1,3289.6,0.3035]
[1732303848962,0.03799392,3291.1,3289.7,0.55]
[1732303849162,0.03799392,3291.1,3288.8,3.0]
[1732303849163,0.03799392,3291.1,3288.9,0.3035]
[1732303849369,0.03799392,3291.1,3289.3,0.3035]
[1732303849771,0.03799392,3291.1,3289.5,0.55]
[1732303850467,0.03799392,3291.1,3289.4,0.3035]
[1732303850844,1.2262,3291.0,3289.2,0.3035]
[1732303851044,1.26419501,3290.9,3289.4,0.3035]
[1732303852101,1.26419501,3290.9,3289.2,0.3035]
[1732303852278,1.26419501,3290.9,3289.4,0.3035]
[1732303852599,1.26419501,3290.9,3288.9,0.55]
[1732303852600,1.2262,3290.9,3289.9,0.3035]
[1732303852803,1.2262,3290.9,3290.1,0.3035]
[1732303853352,1.2262,3290.9,3290.5,0.3035]
[1732303854157,1.53392735,3292.0,3290.7,0.3035]
[1732303854158,1.2262,3291.8,3290.7,0.3035]
[1732303854358,1.2262,3291.8,3290.9,0.3035]
[1732303854664,1.2262,3291.8,3291.1,0.3035]
[1732303855407,1.80620041,3292.7,3290.3,0.8535]
[1732303855408,1.2262,3291.6,3290.3,0.8535]
[1732303855698,0.03798099,3291.5,3290.3,0.8535]
[1732303856001,1.2993,3291.5,3290.3,0.8535]
[1732303856195,1.2993,3291.5,3290.3,1.1629432]
[1732303857090,1.2993,3291.5,3290.6,0.3035]
[1732303857402,1.2993,3291.5,3290.7,1.48004479]
[1732303857564,1.2956,3292.4,3290.7,1.48004479]
[1732303857762,1.2956,3292.4,3290.7,1.1629432]
[1732303858292,1.2956,3292.2,3290.7,0.8535]
[1732303858501,1.57344348,3293.0,3290.7,0.8535]
[1732303858502,1.2628,3292.1,3290.7,0.8535]
[1732303859491,1.24447111,3292.0,3290.7,0.8535]
[1732303860266,0.03797561,3291.9,3290.7,0.8535]
[1732303860473,1.2521,3291.9,3290.7,0.8535]
[1732303860797,1.22957561,3291.8,3290.6,0.3035]
[1732303860984,1.1916,3291.8,3290.6,0.3035]
[1732303861662,1.1916,3291.8,3290.4,0.3035]
[1732303861863,1.1916,3291.8,3290.7,0.8535]
[1732303862099,1.1916,3291.8,3290.8,0.55]
[1732303862475,1.75177152,3292.7,3290.7,0.3035]
[1732303862476,1.2663,3291.6,3291.1,3.0]
[1732303862675,1.2663,3291.4,3290.7,0.3035]
[1732303862996,1.2663,3291.4,3290.2,0.3035]
[1732303863361,1.2663,3291.4,3291.1,3.0]
[1732303863565,1.21396,3291.4,3291.1,3.0]
[1732303863761,0.03798133,3291.3,3291.1,3.0]
[1732303864062,0.19677692,3292.1,3290.6,0.3035]
[1732303864279,0.28194531,3292.0,3290.6,0.3035]
[1732303864500,0.03798151,3291.9,3290.6,0.3035]
[1732303865367,1.58795587,3292.2,3290.6,0.3035]
[1732303865368,1.53392735,3292.0,3290.6,0.3035]
[1732303865707,0.47711156,3291.9,3290.7,0.55]
[1732303865998,0.28194968,3291.8,3290.0,0.3029]
[1732303866204,0.03798615,3291.7,3290.0,0.3029]
[1732303866420,0.28194968,3291.6,3290.0,0.3029]
[1732303866623,1.25428615,3291.5,3289.6,0.3029]
[1732303866781,1.79234261,3291.4,3289.8,0.3029]
[1732303866979,1.2163,3291.2,3289.8,0.3029]
[1732303867317,1.2163,3291.0,3289.8,0.3029]
[1732303867615,1.2457,3290.8,3289.8,0.3029]
[1732303867827,1.2457,3290.6,3289.3,0.3029]
[1732303867981,1.28369285,3290.5,3289.3,0.3029]
[1732303868687,1.2457,3290.5,3289.3,0.3029]
[1732303869385,1.2457,3290.5,3289.3,1.9000432]
[1732303869580,1.2457,3290.5,3289.5,0.3029]
[1732303869780,1.2457,3290.5,3289.5,0.6123432]
[1732303870082,0.03798792,3290.4,3289.5,0.3029]
[1732303870283,1.2392,3290.3,3289.5,0.3029]
[1732303870617,1.2392,3290.3,3289.8,0.3029]
[1732303870833,1.2392,3290.3,3289.9,0.55]
[1732303871180,1.2392,3290.3,3290.0,0.3029]
[1732303871698,1.1797,3291.8,3290.0,0.3029]
[1732303871898,1.1797,3291.6,3290.1,0.3029]
[1732303872099,1.1797,3291.4,3290.3,0.3029]
[1732303872623,1.1797,3291.4,3290.5,0.3029]
[1732303873616,1.1797,3291.4,3290.6,0.3029]
[1732303874588,1.1797,3291.4,3290.3,0.3029]
[1732303875195,1.2257799,3291.3,3290.3,0.3029]
[1732303875618,1.1878,3291.3,3290.2,0.3029]
[1732303875989,1.1878,3291.3,3290.1,0.3094432]
[1732303875990,1.1878,3291.3,3290.4,0.3029]
[1732303877748,1.54212733,3291.9,3290.4,0.3029]
[1732303877749,1.1878,3291.1,3290.4,0.3029]
[1732303878045,1.1878,3291.1,3290.5,0.3029]
[1732303878633,1.2437,3290.9,3290.5,0.3029]
[1732303880122,1.2437,3290.9,3290.1,0.3029]
[1732303880711,1.1986,3290.7,3289.0,1.5832432]
[1732303880911,0.0379914,3290.6,3289.1,0.46776752]
[1732303881141,1.1986,3291.0,3289.1,0.46776752]
[1732303881350,0.32073628,3290.9,3289.2,0.20586691]
[1732303881554,0.32073628,3290.9,3289.2,0.51531011]
[1732303881555,1.48464487,3290.8,3289.2,0.51531011]
[1732303881858,1.2019,3290.6,3289.3,0.3029]
[1732303882050,1.2019,3290.4,3290.2,3.0]
[1732303882359,1.57270457,3290.8,3290.2,3.0]
[1732303882360,1.48464487,3290.3,3290.2,3.0]
[1732303882859,0.28274487,3290.3,3290.2,0.3]
[1732303883059,1.1881,3290.5,3289.7,0.3029]
[1732303883221,1.1881,3290.5,3290.2,3.0]
[1732303883718,1.1881,3290.5,3289.8,0.45999]
[1732303884130,1.1881,3290.5,3289.8,0.7944332]
[1732303884428,1.52060432,3291.1,3290.0,0.3029]
[1732303884429,1.2949,3290.8,3290.0,0.3029]
[1732303886262,1.2949,3290.8,3290.0,0.6373432]
[1732303886616,1.2949,3290.8,3289.9,0.55]
[1732303886617,1.2949,3290.8,3290.2,0.3029]
[1732303886845,0.0479849,3292.8,3290.2,0.3029]
[1732303886846,1.52863419,3291.8,3290.5,1.6043]
[1732303887045,1.57224301,3291.6,3290.7,0.3029]
[1732303887244,1.52863419,3291.8,3290.8,0.36460159]
[1732303887432,1.52863419,3291.8,3290.9,1.2482]
[1732303887645,1.2787,3291.9,3290.9,1.2482]
[1732303888256,0.32064669,3291.8,3290.6,0.3029]
[1732303888430,0.32064669,3291.8,3290.5,1.2202]
[1732303888431,0.28267536,3291.7,3290.8,0.3029]
[1732303888621,0.28274872,3291.6,3290.8,0.3029]
[1732303888840,1.2787,3291.9,3291.6,2.4158]
[1732303889047,0.28274968,3291.8,3290.8,0.3029]
[1732303889455,0.28274968,3291.7,3290.8,0.3029]
[1732303889766,0.28274968,3291.6,3290.8,0.3029]
[1732303890130,0.28280833,3291.5,3290.8,0.3029]
[1732303890329,1.2766,3291.7,3290.6,0.3029]
[1732303890645,1.2766,3291.7,3290.1,0.32914521]
[1732303890646,1.2766,3291.5,3290.8,0.3029]
[1732303890849,2.87309147,3291.3,3290.2,0.36460159]
[1732303891045,0.60219419,3291.2,3290.3,0.3029]
[1732303891247,0.28280652,3291.1,3290.3,0.3029]
[1732303891456,2.87309147,3291.3,3290.3,0.3029]
[1732303891739,1.78950089,3291.2,3290.3,0.3029]
[1732303891935,0.282875,3291.1,3290.3,0.3029]
[1732303892144,1.2383,3291.0,3290.2,0.3029]
[1732303892433,0.282875,3290.9,3290.2,0.3029]
[1732303893135,0.282875,3290.9,3290.3,0.3029]
[1732303893365,1.2383,3291.0,3290.9,2.69713]
[1732303893684,1.52125129,3291.0,3290.3,0.3029]
[1732303893977,1.2383,3291.0,3290.3,0.3029]
[1732303894146,1.2383,3291.0,3290.1,0.3029]
[1732303894338,0.28296411,3290.9,3290.1,0.3029]
[1732303895234,0.03798337,3290.8,3290.1,0.48006702]
[1732303895435,0.03798337,3290.8,3288.7,0.01]
[1732303895436,1.55081194,3290.7,3289.7,0.3029]
[1732303895658,1.55081194,3290.7,3289.2,1.9131468]
[1732303895659,1.2678,3290.5,3289.2,1.9131468]
[1732303895860,0.32100268,3290.4,3289.2,1.9131468]
[1732303896083,1.2678,3290.5,3289.2,1.9131468]
[1732303896084,0.28301194,3290.3,3289.2,1.9131468]
[1732303896378,0.28301194,3290.4,3289.4,0.3029]
[1732303896576,0.28301194,3290.3,3289.5,0.32914521]
[1732303896884,1.2678,3290.5,3290.4,3.0]
[1732303897041,1.5508071,3290.5,3290.4,3.0]
[1732303897735,1.2678,3290.5,3289.5,0.9966468]
[1732303897974,1.2743,3291.1,3290.7,4.1e-07]
[1732303898136,0.2829622,3291.0,3290.0,0.63204521]
[1732303898339,0.2829622,3290.9,3290.0,0.63204521]
[1732303898573,0.2829622,3290.8,3290.0,0.63204521]
[1732303898740,1.2743,3291.1,3290.0,0.63204521]
[1732303898938,0.28302536,3291.0,3290.0,0.63204521]
[1732303899249,0.28302536,3290.9,3290.0,0.63204521]
[1732303899442,0.28302536,3290.8,3290.0,0.63204521]
[1732303899785,1.2743,3291.1,3290.0,0.63204521]
[1732303900140,0.28309074,3291.0,3290.2,0.3029]
[1732303900261,0.28309074,3291.0,3290.4,0.3029]
[1732303901453,0.28309074,3290.9,3290.4,0.3029]
[1732303901763,0.28314554,3290.8,3290.4,0.3029]
[1732303902070,1.2743,3291.1,3290.4,0.3029]
[1732303902280,0.28315006,3291.0,3290.6,4.1e-07]
[1732303902582,1.1997,3290.8,3290.4,0.3029]
[1732303902748,0.28315006,3290.7,3289.9,0.3029]
[1732303902945,1.52083465,3290.6,3290.0,0.15929]
[1732303903189,0.28315006,3290.5,3289.7,0.3029]
[1732303903411,0.28315006,3290.4,3289.7,0.3029]
[1732303903551,1.1997,3290.6,3289.7,0.66750159]
[1732303903861,0.28315638,3290.5,3289.6,0.3029]
[1732303904068,1.1997,3290.3,3289.6,0.46219]
[1732303904277,0.28315327,3290.2,3289.6,0.3029]
[1732303904459,1.1997,3290.3,3289.6,0.3029]
[1732303904674,0.2831555,3290.2,3289.6,0.3029]
[1732303904844,1.1997,3290.3,3289.6,0.3029]
[1732303904845,0.2831555,3290.1,3289.6,0.3029]
[1732303905050,0.2831555,3290.2,3289.3,0.3029]
[1732303905250,0.28312045,3290.1,3289.3,0.50127468]
[1732303905595,1.52081436,3290.0,3289.3,0.3029]
[1732303905892,0.28312045,3289.9,3289.3,0.3029]
[1732303906048,0.28312045,3289.9,3289.0,0.36460159]
[1732303906049,0.28312045,3289.9,3289.1,0.3029]
[1732303906452,0.28312045,3289.9,3289.1,0.66750159]
[1732303906683,0.28312045,3289.9,3289.2,0.36460159]
[1732303906890,0.28312045,3289.9,3289.5,3.0]
[1732303907060,0.28312045,3289.9,3289.6,0.3]
[1732303907257,0.28312045,3289.9,3289.5,3.0]
[1732303907457,0.28312045,3289.9,3289.2,0.6937468]
[1732303907714,1.1997,3290.0,3289.2,0.6937468]
[1732303907924,0.28300571,3289.9,3289.2,0.6937468]
[1732303908085,1.1997,3290.6,3289.8,3.0]
[1732303908285,1.1997,3290.6,3289.4,1.5929]
[1732303908286,0.28296436,3290.5,3289.9,0.3]
[1732303908484,0.28296436,3290.4,3289.9,3.0]
[1732303908788,0.28296436,3290.3,3289.9,0.3]
[1732303909116,1.1997,3290.6,3289.4,1.5929]
[1732303909323,0.28294924,3290.5,3289.4,1.5929]
[1732303909524,0.28294924,3290.5,3289.4,1.92204521]
[1732303909682,0.28294924,3290.5,3289.6,0.3029]
[1732303909880,1.57964996,3290.7,3289.8,0.3029]
[1732303911822,1.57964996,3290.7,3290.4,1.06e-06]
[1732303911992,1.57964996,3290.7,3289.8,0.3029]
[1732303914985,1.59162224,3290.5,3289.8,0.3029]
[1732303915232,1.57964996,3290.7,3289.9,3.6e-07]
[1732303915614,1.57964996,3290.7,3289.9,2.2e-07]
[1732303915821,1.57964996,3290.7,3289.7,0.93790022]
[1732303916720,1.57964996,3290.7,3289.7,0.63510066]
[1732303916922,0.28299172,3290.6,3288.9,0.2765352]
[1732303917123,2.84542224,3290.5,3288.9,0.2765352]
[1732303917311,0.28299172,3290.4,3288.9,0.2765352]
[1732303917739,0.28299172,3290.4,3289.0,0.3029]
[1732303918344,0.28299172,3290.3,3289.0,0.3029]
[1732303918549,0.28299172,3290.4,3289.0,0.3029]
[1732303918752,0.28299172,3290.3,3289.0,0.3029]
[1732303919044,0.28299172,3290.3,3289.4,0.3029]
[1732303919262,1.2149,3290.1,3289.6,0.3029]
[1732303919413,1.49789172,3290.0,3289.6,0.3029]
[1732303919615,1.49789172,3290.0,3288.2,0.3029]
[1732303919616,0.28299172,3289.9,3288.2,0.3029]
[1732303919911,0.28299172,3289.8,3288.4,0.3029]
[1732303920135,0.28299172,3289.8,3288.3,1.2629]
[1732303920136,0.28299172,3289.7,3288.6,0.3029]
[1732303920446,1.2149,3290.0,3288.6,0.3029]
[1732303920614,1.2149,3290.0,3288.5,0.15658]
[1732303920615,0.28333715,3289.9,3288.8,0.3029]
[1732303920815,0.28333715,3289.9,3289.0,0.3029]
[1732303921045,0.28333715,3289.8,3289.0,0.3029]
[1732303921225,1.2149,3290.0,3289.0,0.3029]
[1732303921437,0.28332161,3289.9,3289.0,0.3029]
[1732303921748,0.28332161,3289.8,3289.0,0.3029]
[1732303921945,2.72973197,3290.0,3289.0,0.3029]
[1732303922131,0.28330688,3289.9,3289.0,0.3029]
[1732303922338,0.28330688,3289.8,3289.0,0.3029]
[1732303922651,2.72973197,3290.0,3289.0,0.3029]
[1732303922867,0.28330535,3289.9,3289.0,0.3029]
[1732303923165,1.1834,3289.7,3289.0,0.3029]
[1732303923339,0.2832809,3289.6,3289.0,0.3029]
[1732303923525,1.1834,3289.7,3289.0,0.3029]
[1732303924065,0.28328675,3289.6,3289.0,0.3029]
[1732303925339,0.28328675,3289.6,3286.9,1.26334765]
[1732303925340,1.21359929,3289.5,3286.9,1.26334765]
[1732303925539,1.21359929,3289.5,3286.7,1.1572]
[1732303925540,1.2355,3289.3,3287.0,0.3029]
[1732303925768,0.55,3289.0,3287.0,0.3029]
[1732303926067,1.2355,3288.8,3287.0,0.3029]
[1732303926266,0.32130003,3288.7,3287.0,0.3029]
[1732303926571,1.53708675,3288.6,3286.8,0.3029]
[1732303926888,0.28328675,3288.5,3286.8,0.3029]
[1732303927164,1.2538,3288.6,3286.8,0.3029]
[1732303927742,0.32064632,3288.5,3286.8,0.3029]
[1732303927928,0.28263746,3288.4,3286.8,0.3029]
[1732303928126,0.03801333,3288.3,3286.8,0.3029]
[1732303928355,1.2538,3288.6,3286.8,0.3029]
[1732303929088,1.2538,3288.6,3286.8,0.58398355]
[1732303929240,1.2538,3288.6,3287.0,0.3029]
[1732303929438,1.2538,3288.6,3287.7,3.0]
[1732303929762,0.03801332,3288.5,3287.0,0.3029]